Cogmind - Beta 14 @@@ ROGUE MODE // 2024.11.12 @ 09:02:05 Player: Shimmyarah Result: Self-destructed Performance ------------- Evolutions (2) 1000 Regions Visited (3) 600 Robots Destroyed (62) 310 Value Destroyed (1384) 1384 Prototype IDs (0) 0 Alien Tech Used (0) 0 Bonus (62) 62 TOTAL SCORE: 3356 Bonus ------- High Alert Combat Kills 62 Cogmind --------- Core Integrity 550/550 Matter 6/300 Energy 250/250 System Corruption 0% Temperature Cool (0) Movement Walking (120) Location -8/Materials Parts ------- > --- POWER (1) -------- Ion Engine > --- PROPULSION (3) --- Aluminum Leg Aluminum Leg Improved Aluminum Leg > --- UTILITY (4) ------ Large Storage Unit Structural Scanner Sensor Array > --- WEAPON (3) ------- Beam Rifle > --- INVENTORY (15) --- Light Treads Light Treads Small Matter Pod (50) Mini Grenade Launcher Missile Launcher Missile Launcher Peak State ------------ > --- POWER ------------ Improved Ion Engine > --- PROPULSION ------- Aluminum Leg Aluminum Leg > --- UTILITY ---------- Heat Sink Large Storage Unit Reflective Plating > --- WEAPON ----------- Shock Rifle Shock Rifle Missile Launcher > --- INVENTORY -------- Light Treads Light Treads Aluminum Leg Aluminum Leg Improved Aluminum Leg Small Matter Pod Structural Scanner Sensor Array Beam Rifle Mini Grenade Launcher Missile Launcher Missile Launcher Mining Laser [Rating: 20] Favorites ----------- Power Ion Engine Engine Ion Engine Propulsion Aluminum Leg Leg Aluminum Leg Utility Large Storage Unit Device Seismic Detector Storage Large Storage Unit Protection Reflective Plating Weapon Beam Cannon Energy Gun Shock Rifle Energy Cannon Beam Cannon Ballistic Gun Assault Rifle Launcher Missile Launcher Special Weapon Mining Laser Build | -11 -10 -9 -8 ------- Run | Yrd Mat Mat Mat Slots Evolved 4 | . . 2 2 Power . | . . . . Propulsion 1 | . . . 1 Utility 2 | . . 1 1 Weapon 1 | . . 1 . Parts Attached 69 | 6 18 40 5 Power 6 | 1 2 3 . Engine 6 | 1 2 3 . Core . | . . . . Reactor . | . . . . Propulsion 14 | 2 3 6 3 Treads . | . . . . Leg 14 | 2 3 6 3 Wheel . | . . . . Hover . | . . . . Flight . | . . . . Utility 11 | 1 2 6 2 Device 7 | . 1 4 2 Storage 2 | 1 1 . . Processor . | . . . . Hackware . | . . . . Protection 2 | . . 2 . Artifact . | . . . . Weapon 38 | 2 11 25 . Energy Gun 8 | 1 3 4 . Energy Cannon 8 | . 2 6 . Ballistic Gun 6 | 1 2 3 . Ballistic Cannon . | . . . . Launcher 5 | . . 5 . Special Weapon 11 | . 4 7 . Impact Weapon . | . . . . Slashing Weapon . | . . . . Piercing Weapon . | . . . . Special Melee Weapon . | . . . . Unidentified Prototypes . | . . . . Parts Lost 17 | . 1 16 . Power 2 | . . 2 . Propulsion 3 | . . 3 . Utility 4 | . . 4 . Weapon 8 | . 1 7 . Highest Loss Streak 5 | . 1 5 . To Critical Strikes 1 | . . 1 . Average Slot Usage (%) 92 | . 93 92 70 Engine 11 | . 13 9 9 Leg 23 | . 27 20 27 Device 15 | . 14 16 16 Storage 12 | . 14 11 9 Protection 1 | . . 2 . Energy Gun 7 | . 8 6 9 Energy Cannon 9 | . 4 14 . Ballistic Gun 5 | . 6 4 . Launcher 1 | . . 2 . Special Weapon 3 | . 3 3 . Peak Build Rating 20 | 7 8 20 11 Average Rating 10 | 5 7 12 10 On Entrance 5 | . 7 8 5 Naked Turns . | . . . . Heaviest Build 44 | 12 31 44 30 Greatest Support 33 | 20 20 20 33 Greatest Overweight (x) 9 | 3 3 9 . Average Overweight (x) . | . . 1 . Largest Inventory Capacity 15 | 8 15 15 15 Average Capacity 14 | 7 14 15 15 Most Carried 15 | 8 15 15 10 Average Carried 12 | 6 11 14 6 Final Capacity 15 | 8 15 15 15 Final Carried 15 | 8 15 11 6 Class Distribution -------------------- 53% | Mutant 18% | Skirmisher 12% | Tank 10% | Gunner 4% | Scavenger-Mutant Dominant Class ---------------- Mutant | -10/Materials Skirmisher | -9/Materials Scavenger-Mutant | -8/Materials Resources | -11 -10 -9 -8 ----------- Run | Yrd Mat Mat Mat Matter Collected 1144 | 317 228 599 . Remotely . | . . . . Salvage Created 1705 | 234 325 1146 . Parts 109 | 16 17 76 . Haulers Intercepted . | . . . . Recyclers Shooed 1 | . . 1 . Parts Field Recycled . | . . . . Retrieved Matter . | . . . . Parts Self-Destructed . | . . . . Prevented . | . . . . Kills | -11 -10 -9 -8 ------- Run | Yrd Mat Mat Mat Combat Hostiles Destroyed 39 | . 7 32 . Guns 17 | . 5 12 . Cannons 10 | . 1 9 . AOE 10 | . . 10 . Classes Destroyed 9 | 3 3 3 . Worker 3 | 2 . 1 . Builder 3 | . . 3 . Tunneler 6 | 5 . 1 . Recycler 2 | 1 . 1 . Mechanic 1 | . . 1 . Watcher 8 | . 3 5 . Swarmer 13 | . 2 11 . Grunt 21 | . 5 16 . Sentry 5 | . . 5 . Best Kill Streak 7 | 4 3 7 . Combat Bots Only 5 | . 3 5 . Max Kills in Single Turn 3 | 1 1 3 . Gunslinging . | . . . . Exploded 2 | . . 2 . Melee . | . . . . Uniques/NPCs Destroyed . | . . . . Combat | -11 -10 -9 -8 -------- Run | Yrd Mat Mat Mat Hostile Shots Fired 253 | . 90 161 2 Missed 69 | . 26 41 2 Damage Taken 2460 | . 754 1706 . Core 367 | . 138 229 . Absorbed by Shields . | . . . . Ignored by Resistances 37 | . . 37 . Regen/Repaired (Parts) 170 | . 67 103 . Core Remaining (%) 62 | 100 44 42 . Volleys Fired 173 | 19 72 82 . Largest 3 | 2 2 3 . Hottest 170 | 70 140 170 . Shots Fired 335 | 38 119 178 . Gun 187 | 38 90 59 . Cannon 80 | . 12 68 . Launcher 28 | . . 28 . Special 40 | . 17 23 . Kinetic 80 | 19 36 25 . Thermal 180 | 19 70 91 . Explosive 28 | . . 28 . Electromagnetic 47 | . 13 34 . Robot Hit Streak 10 | 10 8 9 . Robot Miss Streak 6 | 3 3 6 . Penetration Max . | . . . . Secondary Targets . | . . . . Shots Hit Robots 144 | 25 55 64 . Core Hits 78 | 9 15 54 . Critical Kills 1 | . . 1 . Critical Parts Destroyed . | . . . . Critical Strikes 7 | . 5 2 . Burn 5 | . 5 . . Meltdown 1 | . . 1 . Corrupt 1 | . . 1 . Melee Attacks . | . . . . Impact . | . . . . Slashing . | . . . . Piercing . | . . . . Sneak Attacks . | . . . . Combat Hostiles . | . . . . Follow-up Attacks . | . . . . Damage Inflicted 3800 | 283 808 2709 . Guns 1531 | 283 656 592 . Cannons 645 | . 122 523 . Explosions 1529 | . . 1529 . Melee . | . . . . Ramming 95 | . 30 65 . Kinetic 648 | 145 280 223 . Thermal 1178 | 138 421 619 . Explosive 1433 | . . 1433 . Electromagnetic 446 | . 77 369 . Impact . | . . . . Slashing . | . . . . Piercing . | . . . . Highest Corruption 3 | . 1 3 . Average Corruption 2 | . 1 3 . Corruption Purged . | . . . . Corruption Blocked . | . . . . Effects 20 | . . 20 . Message Errors 5 | . . 5 . Matter Fused 3 | . . 3 . Heat Flow Errors 4 | . . 4 . Energy Discharges 4 | . . 4 . Data Loss (minor) 2 | . . 2 . Data Loss (major) 2 | . . 2 . Overload Shots . | . . . . Overflow Damage 92 | . 11 81 . Projectiles 20 | . 11 9 . Explosions 72 | . . 72 . Melee . | . . . . Knockbacks 1 | . . 1 . Impact 1 | . . 1 . Kinetic . | . . . . Secondary . | . . . . Self-Inflicted Damage 119 | . . 119 . Shots 4 | . . 4 . Rammed . | . . . . Targets Rammed 18 | . 5 13 . Kicked 18 | . 5 13 . Crushed . | . . . . Highest Temperature 332 | 99 262 332 . Average Temperature 72 | 34 76 76 . Received Heat Transfer 540 | . 228 312 . Effects 2 | . 2 . . Interference 2 | . 2 . . Siege Activations . | . . . . Robots Corrupted . | . . . . Combat Hostiles . | . . . . Parts Fried 3 | . . 3 . Impact Corruptions . | . . . . Robots Melted 2 | . 1 1 . Combat Hostiles 2 | . 1 1 . Parts Melted 7 | . 4 3 . Heat Transferred 3284 | 407 1517 1360 . Parts Sabotaged . | . . . . Parts Stolen . | . . . . Parts Stripped . | . . . . Power Chain Reactions 2 | . . 2 . Alert | -11 -10 -9 -8 ------- Run | Yrd Mat Mat Mat Peak Influence 708 | 40 150 708 278 Initial 263 | . 26 20 263 Average 162 | 17 54 272 267 Maximum Alert Level 3 | . . 3 1 Low Security (%) 74 | 100 100 49 . Level 1 15 | . . 29 100 Level 2 10 | . . 21 . Level 3 . | . . . . Level 4 . | . . . . Level 5 . | . . . . High Security . | . . . . Max Security . | . . . . Squads Dispatched 5 | . . 4 1 Investigation . | . . . . Extermination . | . . . . Reinforcement 5 | . . 4 1 Assault . | . . . . Garrison . | . . . . Intercept . | . . . . Searches Triggered . | . . . . Construction Impeded 1 | . . 1 . Haulers Reinforced . | . . . . Active Scanning Responses . | . . . . Cargo Convoy Interrupts . | . . . . Stealth | -11 -10 -9 -8 --------- Run | Yrd Mat Mat Mat Distress Signals 10 | . 1 9 . Communications Jammed . | . . . . Distress Signals . | . . . . Times Spotted 72 | . 19 50 3 Peak Tracking Total 6 | . 4 6 2 Tactical Retreats 8 | . 2 6 . Traps | -11 -10 -9 -8 ------- Run | Yrd Mat Mat Mat Traps Triggered 8 | . 8 . . Indirectly . | . . . . Trap Hack Attempts . | . . . . Triggered . | . . . . Disarmed . | . . . . Reprogrammed . | . . . . Reused . | . . . . Traps Extracted . | . . . . Installed . | . . . . Triggered . | . . . . Machines | -11 -10 -9 -8 ---------- Run | Yrd Mat Mat Mat Machines Disabled 5 | . . 5 . Max in Single Turn 1 | . . 1 . Machines Repaired . | . . . . Machines Dismantled . | . . . . Machines Sabotaged . | . . . . Overloaded Fab Kills . | . . . . Hacking | -11 -10 -9 -8 --------- Run | Yrd Mat Mat Mat Machines Accessed 20 | . 9 11 . Terminals 17 | . 8 9 . Fabricators . | . . . . Repair Stations 2 | . 1 1 . Recycling Units . | . . . . Scanalyzers 1 | . . 1 . Garrison Access . | . . . . Total Hacks 75 | . 28 47 . Successful 45 | . 17 28 . Failed 30 | . 11 19 . Catastrophic 4 | . 3 1 . Database Lockouts . | . . . . Manual 65 | . 27 38 . Terminals 66 | . 26 40 . Fabricators . | . . . . Repair Stations 6 | . 2 4 . Recycling Units . | . . . . Scanalyzers 3 | . . 3 . Garrison Access . | . . . . Terminal Hacks 4 | . 1 3 . Robot Analysis 2 | . . 2 . Terminal Index 2 | . 1 1 . Fabricator Hacks . | . . . . Repair Station Hacks 6 | . 2 4 . Scan Component 3 | . 1 2 . Repair 3 | . 1 2 . Recycling Unit Hacks . | . . . . Scanalyzer 1 | . . 1 . Insert Component 1 | . . 1 . Garrison Access Hacks . | . . . . Unauthorized Hacks 34 | . 14 20 . Terminals 34 | . 14 20 . Track 7 | . 3 4 . Assimilate 5 | . 1 4 . Botnet 9 | . 5 4 . Operators 2 | . . 2 . Skim 11 | . 5 6 . Fabricators . | . . . . Repair Stations . | . . . . Recycling Units . | . . . . Scanalyzers . | . . . . Garrison Access . | . . . . Data Cores Recovered . | . . . . Used . | . . . . Hacking Detections 17 | . 9 8 . Full Trace Events . | . . . . Feedback Events . | . . . . Feedback Blocked . | . . . . Robot Schematics Acquired . | . . . . Robots Built . | . . . . Authchips . | . . . . Time . | . . . . Total Robot Build Rating . | . . . . Part Schematics Acquired . | . . . . Parts Built . | . . . . Authchips . | . . . . Time . | . . . . Total Part Build Rating . | . . . . Parts Repaired 3 | . 1 2 . Time 78 | . 26 52 . Parts Recycled . | . . . . Recycled Matter . | . . . . Retrieved Matter . | . . . . Retrieved Components . | . . . . Parts Scanalyzed 1 | . . 1 . Part Schematics Acquired . | . . . . Parts Damaged 1 | . . 1 . Bothacking | -11 -10 -9 -8 ------------ Run | Yrd Mat Mat Mat Used RIF Installer . | . . . . Robots Hacked . | . . . . Non-combat . | . . . . Combat . | . . . . Robot Hacks Applied . | . . . . Relay Couplers Released . | . . . . Fabnet Peak Effective % . | . . . . Robots Rewired . | . . . . Allies Hacked . | . . . . Hacks Repelled . | . . . . Allies | -11 -10 -9 -8 -------- Run | Yrd Mat Mat Mat Total Allies . | . . . . Largest Group . | . . . . Highest-Rated Group . | . . . . Highest-Rated Ally . | . . . . Total Orders . | . . . . Ally Attacks . | . . . . Total Damage . | . . . . Kills . | . . . . Allies Corrupted . | . . . . Allies Melted . | . . . . Intel | -11 -10 -9 -8 ------- Run | Yrd Mat Mat Mat Robot Analysis Total 2 | . . 2 . Derelict Logs Recovered . | . . . . Drone Launches . | . . . . Drone Recoveries . | . . . . Exploration | -11 -10 -9 -8 ------------- Run | Yrd Mat Mat Mat Turns Passed 4884 | 207 2217 2411 49 Spaces Moved 1881 | 123 849 873 36 Core 46 | 26 . 20 . Treads . | . . . . Legs 1835 | 97 849 853 36 Wheels . | . . . . Hover . | . . . . Flight . | . . . . Fastest Speed 50 | 50 120 190 120 Average Speed 185 | 107 184 199 120 Slowest Speed 500 | 200 330 500 120 Overloaded Moves . | . . . . Propulsion Burnouts . | . . . . Robots Hopped . | . . . . Cave-ins Triggered 1 | . . 1 . Exploration Rate (%) 42 | 6 92 66 5 Regions Visited 3 Branch Regions . Pre-discovered Areas 1 | . 1 . . Known Exits Taken 1 | . 1 . . Unknown Exits Taken 2 | 1 . 1 . Scrap Searched . | . . . . Spaces Dug 50 | . 17 33 . Terrain Destroyed 229 | . 17 212 . Melee . | . . . . Projectile 40 | . 17 23 . AOE 189 | . . 189 . Terrain Rammed . | . . . . Walls Destroyed . | . . . . Machines Disabled . | . . . . Actions | -11 -10 -9 -8 --------- Run | Yrd Mat Mat Mat Total 2869 | 158 1342 1328 41 Wait 664 | . 373 291 . Move 1878 | 122 848 872 36 Hop . | . . . . Pick Up 49 | 11 21 17 . Fast Attach 7 | 3 1 3 . Attach 30 | 3 10 12 5 Detach . | . . . . Swap 32 | . 7 25 . Drop 18 | . 5 13 . Fire 173 | 19 72 82 . Melee . | . . . . Ram . | . . . . Kick 18 | . 5 13 . Crush . | . . . . Escape Stasis . | . . . . Rewire . | . . . . Trap . | . . . . Miscellaneous . | . . . . Route ------- -11/Scrapyard -10/Materials (discovered 6 exits: *Mat x3 / *Min x2 / Sub) -9/Materials (discovered 2 exits: [*Mat] / [*Min]) -8/Materials History --------- Turn | Location | Event 9 | -11/Scrapyard | Discovered new exit (range 15) 208 | -11/Scrapyard | Entered Materials 308 | -10/Materials | Build established: Mutant 766 | -10/Materials | Discovered new exit (range 10) 1161 | -10/Materials | Discovered new exit (range 16) 1351 | -10/Materials | Learned location of Mines (-10) 1388 | -10/Materials | Repaired Aluminum Leg 1390 | -10/Materials | Learned 4 Subcaves zone layouts 1419 | -10/Materials | Identified exit to Mines 1419 | -10/Materials | Identified exit to Subcaves 1440 | -10/Materials | Identified exit to Materials 1509 | -10/Materials | Learned 4 Recycling zone layouts 1561 | -10/Materials | Learned 4 Subcaves zone layouts 1906 | -10/Materials | Core integrity fell below 50% 2425 | -10/Materials | Entered another Materials area 2425 | -9/Materials | Evolved 2 slots: Utility x1, Weapon x1 2570 | -9/Materials | Repaired Beam Cannon 2601 | -9/Materials | Repaired Beam Cannon 3215 | -9/Materials | Build established: Skirmisher 3852 | -9/Materials | Discovered new exit (range 8) 3964 | -9/Materials | Crushed by falling debris 4419 | -9/Materials | Discovered new exit (range 3) 4618 | -9/Materials | Lost 5 parts (2u3w) 4715 | -9/Materials | Core integrity fell below 50% 4789 | -9/Materials | Lost 5 parts (1p2n2w) 4836 | -9/Materials | Entered another Materials area 4836 | -8/Materials | Evolved 2 slots: Propulsion x1, Utility x1 4885 | -8/Materials | Self-destructed Last Messages --------------- 04763_ The unstable cave ceiling collapses. 04764_ K-01 Serf collects debris. 04765_ U-05 Engineer builds a Wall. 04768_ K-01 Serf collects debris. 04771_ T#YAMLA>6KTXHMRYRQ&EMQJDEM7,ZBS01YUX 04772_ K-01 Serf collects debris. 04788_ U-05 Engineer lays Concrete. 04789_ U-05 Engineer builds a Wall. 04814_ U-05 Engineer lays Concrete. 04831_ System corrupted: Component data lost. PARAMETERS=PROPULSION+1,UTILITY+1 LOCATION=UNKNOWN GOAL=ESCAPE 04857_ K-01 Serf collects debris. 04869_ O-16 Technician: "IFF HANDSHAKE FAILED. SECURING TERMINAL." 04872_ K-01 Serf collects debris. 04874_ ALERT: Hostiles spotted, dispatching reinforcements to Terminal M011. 04875_ K-01 Serf collects debris. Map ----- +----------------------------------------------------+ | ?????????????????????????????????????????????????? | | ?????????????????????????????????????????????????? | | ?????????????????????????????????????????????????? | | ?????????????????????????????????????????????????? | | ?????????????????????????????????????????????????? | | ?????????????????????????????????????????????????? | | ?????????????????????????????????????????????????? | | ?????????????????????????????????????????????????? | | ?????????????????????????????????????????????????? | | ????????????????? ????????????????????????????? | | ????????????????? ##????????????????????????????? | | ??????????????""" ##????????????????????????????? | | ????????????? ##????????????????????????????? | | ????????????? ##????????????????????????????? | | ????????????? # ????????????????????????????? | | ?????????????? # ??????????? # ??????????????? | | ?????????????? # "?????????? # ??????????????? | | ??????????????## + ??????????? # ??????????? | | ??????????????## # ?????????? ###g###?????????? | | ?#########???### # #### a ###?????????? | | ?############### ########### g k ?????????? | | ?## ####### k u ?????????? | | ?## u g ?????????? | | ?## ????????? | | ?## ????????? | | ?## ####### ! @ ????????? | | ?### ############################??????????????? | | ?### ###???################# ??????????????? | | ??## ##????????????????????????????????????????? | | ??## ##????????????????????????????????????????? | | ??## ##????????????????????????????????????????? | | ??## ##????????????????????????????????????????? | | ??## ##????????????????????????????????????????? | | ??#######????????????????????????????????????????? | | ??#######????????????????????????????????????????? | | ?????????????????????????????????????????????????? | | ?????????????????????????????????????????????????? | | ?????????????????????????????????????????????????? | | ?????????????????????????????????????????????????? | | | | | | | | | | | | | | | | | | | | | | | +----------------------------------------------------+ Best States ------------- Heat Dissipation 38 Energy Generation 12 Energy Capacity 265 Matter Stores 300 Matter Capacity 300 Sight Range 16 Robot Scan Range 14 Terrain Scan Density 10 Armor Coverage 150 Resistance: TH 10 Evasion (%) 55 Item Schematics ----------------- None Robot Schematics ------------------ None Fabricated ------------ Nothing Alien Tech Used ----------------- None Achievements -------------- None Challenges ------------ None Game ------ Seed SubatomicInertialSpiker Manual? 0 Play Time 00:39:35 Cumulative 35.2 hours Start 2024.11.12 @ 08:22:13 End 2024.11.12 @ 09:02:05 Sessions 1 Manual Loads 0 Difficulty Rogue Special Mode None Game No. 71 Rogue 71 Adventurer 0 Explorer 0 Win Type - Total 0 Types 0/0/0/0/0/0/0/0/0 Lore% 14 Gallery% 25 Achievement% 23 Wizard Run 0 Options --------- Layout 1 ASCII 0 Keyboard 0 Movement Arrows Keybinds 0 Fullscreen 1 Font 24/Smallcaps Map View 50x40 Zoom Use 0% Tactical HUD 1 Map Filters NONE Filters NONE Steam 1 RUN: af97685a-7e86-4554-ad5f-5bd0ac6914d2